Workbook

Sheet Example 3.1
A1: A Beginner's Guide to ACI318-14 | G1: Last modified: | H1: 2017-12-04
A2: Example Problem 3.1 | G2: by: | H2: TBQ
B8: fy | C8: 60 | D8: ksi | G8: X-X | H8: Y-Y
B9: f'c | C9: 5 | D9: ksi | E9: bar | F9: Area | G9: Axis | H9: Axis
B10: Beta 1 | C10: =MAX(MIN(0.85-(C9-4)*0.05,0.85),0.65) -> 0.8 | F10: (in^2) | G10: (in) | H10: (in)
E11: 1 | F11: 1 | G11: 15 | H11: -3
E12: 2 | F12: 1 | G12: 15 | H12: 0
E13: 3 | F13: 1 | G13: 15 | H13: 3
E14: 4 | F14: 1 | G14: 0 | H14: -9
E15: 5 | F15: 1 | G15: 0 | H15: 0
E16: 6 | F16: 1 | G16: 0 | H16: 9
E17: 7 | F17: 1 | G17: -15 | H17: -9
E18: 8 | F18: 1 | G18: -15 | H18: 9
E19: coordinate measured from center of area
B28: Strong Axis Bending
B29: c = | C29: 25 | D29: in | E29: a = | F29: =+C10*C29 -> 20 | G29: in., measured from compression face
B31: Concrete Area and Centroid Computations | O31: Computation of Interaction Curve
C32: Width | D32: Height | E32: Area | F32: Ycf | G32: Ycf*A | H32: XCA | I32: X*A | O32: c | P32: Pn | Q32: Mnx
C33: (in) | D33: (in) | E33: (in2) | F33: (in) | G33: (in3) | H33: (in) | I33: (in3) | O33: (in) | P33: (k) | Q33: (ft-k)
B34: A1 | C34: 12 | D34: =IF(F29<=12,F29,12) -> 12 | E34: =+C34*D34 -> 144 | F34: =MIN(F29/2,6) -> 6 | G34: =+F34*E34 -> 864 | H34: 0 | I34: =+E34*H34 -> 0 | J34: Top third of section | O34: 0.001 | P34: 479.9592 | Q34: -74.93880136 | V34: =+Q34 -> -74.93880136 | W34: =-P34 -> -479.9592
B35: A2 | C35: 24 | D35: =IF(F29<=24,MAX(0,F29-12),12) -> 8 | E35: =+C35*D35 -> 192 | F35: =IF(F29<=24,MAX(0,F29-12)/2+12,18) -> 16 | G35: 3072 | H35: 0 | I35: =+E35*H35 -> 0 | J35: Middle third of section | O35: 1.8 | P35: 400.56 | Q35: 38.2536 | V35: =+Q35 -> 38.2536 | W35: =-P35 -> -400.56
B36: A3 | C36: 12 | D36: =IF(F29<=36,MAX(0,F29-24),12) -> 0 | E36: =+C36*D36 -> 0 | F36: =IF(F29<=36,MAX(0,F29-24)/2+24,30) -> 24 | G36: 0 | H36: 0 | I36: 0 | J36: Bottom third of section | O36: 2.18 | P36: 309.2303119 | Q36: 154.2348461 | V36: 154.2348461 | W36: -309.2303119
B37: As1 | E37: =IF(F37<F$29,-F11,0) -> -1 | F37: =18-G11 -> 3 | G37: -3 | H37: =+H11 -> -3 | I37: 3 | O37: 3.31 | P37: 140.5078912 | Q37: 368.22684 | V37: 368.22684 | W37: -140.5078912
B38: As2 | E38: -1 | F38: 3 | G38: -3 | H38: 0 | I38: 0 | O38: 5.06 | P38: 0.04508300395 | Q38: 541.7347502 | V38: 541.7347502 | W38: -0.04508300395
B39: As3 | E39: -1 | F39: 3 | G39: -3 | H39: 3 | I39: -3 | O39: 8.12 | P39: -183.1174286 | Q39: 747.0500017 | V39: 747.0500017 | W39: 183.1174286
B40: As4 | E40: -1 | F40: 18 | G40: -18 | H40: -9 | I40: 9 | O40: 11.28 | P40: -351.9846383 | Q40: 876.354276 | V40: 876.354276 | W40: 351.9846383
B41: As5 | E41: -1 | F41: 18 | G41: -18 | H41: 0 | I41: 0 | O41: 13.64 | P41: -520.3338475 | Q41: 940.803044 | V41: 940.803044 | W41: 520.3338475
B42: As6 | E42: -1 | F42: 18 | G42: -18 | H42: 9 | I42: -9 | O42: 15.82 | P42: -690.196134 | Q42: 1002.689572 | V42: 1002.689572 | W42: 690.196134
B43: As7 | E43: 0 | F43: 33 | G43: 0 | H43: -9 | I43: 0 | O43: 17.53 | P43: -858.7002818 | Q43: 1056.876052 | V43: 1056.876052 | W43: 858.7002818
B44: As8 | E44: 0 | F44: 33 | G44: 0 | H44: 9 | I44: 0 | O44: 19.3 | P44: -1027.710311 | Q44: 1096.2097 | V44: 1096.2097 | W44: 1027.710311
B45: Total | E45: =SUM(E34:E44) -> 330 | G45: =SUM(G34:G44) -> 3873 | I45: =SUM(I34:I44) -> 0 | O45: 20.91 | P45: -1197.22336 | Q45: 1092.942883 | V45: 1092.942883 | W45: 1197.22336
B46: Ac = | C46: =+E45 -> 330 | D46: in^2 | O46: 22.53 | P46: -1352.565843 | Q46: 1075.135285 | V46: 1075.135285 | W46: 1352.565843
B47: Ycf = | C47: =+G45/C46 -> 11.73636364 | D47: in (center of area measured from the compression face) | O47: 24.21 | P47: -1521.809234 | Q47: 1045.077349 | V47: 1045.077349 | W47: 1521.809234
B48: Y = | C48: =18-C47 -> 6.263636364 | D48: in (Y location of center of area measured from centroidal X axis) | O48: 25.93 | P48: -1690.765555 | Q48: 1001.364903 | V48: 1001.364903 | W48: 1690.765555
B49: X = | C49: =+I45/E45 -> 0 | D49: in (X location of center of area measured from centroidal Y axis) | O49: 27.7 | P49: -1860.924693 | Q49: 942.1292235 | V49: 942.1292235 | W49: 1860.924693
O50: 29.5 | P50: -2030.801695 | Q50: 866.5875847 | V50: 866.5875847 | W50: 2030.801695
C51: Area | D51: Ycf | E51: strain | F51: stress | G51: Force | H51: y arm | I51: Mnx | K51: x arm | L51: Mny | O51: 32.4 | P51: -2201.197778 | Q51: 768.2966778 | V51: 768.2966778 | W51: 2201.197778
C52: (in^2) | D52: (in) | F52: (ksi) | G52: (k) | H52: (in) | I52: (in-k) | K52: (in) | L52: (in-k) | O52: 35.8 | P52: -2370.519888 | Q52: 639.9809268 | V52: 639.9809268 | W52: 2370.519888
B53: Conc | C53: =+C46 -> 330 | D53: =+C47 -> 11.73636364 | E53: ---- | F53: =-0.85*C9 -> -4.25 | G53: =+C53*F53 -> -1402.5 | H53: =+D53-18 -> -6.263636364 | I53: =+G53*H53 -> 8784.75 | K53: =+C49 -> 0 | L53: =+G53*K53 -> 0 | O53: 40 | P53: -2572.5 | Q53: 443 | V53: 443 | W53: 2572.5
B54: Bar 1 | C54: =F11 -> 1 | D54: =+F37 -> 3 | E54: =0.003*(D54-C$29)/C$29 -> -0.00264 | F54: =MIN(MAX(E54*29000,-C$8),C$8) -> -60 | G54: -60 | H54: =-G11 -> -15 | I54: =+G54*H54 -> 900 | K54: =+H11 -> -3 | L54: =+G54*K54 -> 180 | O54: 42.5 | P54: -2681.352941 | Q54: 315.5698529 | V54: 315.5698529 | W54: 2681.352941
B55: Bar 2 | C55: 1 | D55: 3 | E55: -0.00264 | F55: -60 | G55: -60 | H55: -15 | I55: =+G55*H55 -> 900 | K55: 0 | L55: =+G55*K55 -> 0 | O55: 107 | P55: -2894 | Q55: 69.6875 | V55: 69.6875 | W55: 2894
B56: Bar 3 | C56: 1 | D56: 3 | E56: -0.00264 | F56: -60 | G56: -60 | H56: -15 | I56: =+G56*H56 -> 900 | K56: 3 | L56: =+G56*K56 -> -180
B57: Bar 4 | C57: 1 | D57: 18 | E57: -0.00084 | F57: -24.36 | G57: -24.36 | H57: 0 | I57: =+G57*H57 -> 0 | K57: -9 | L57: =+G57*K57 -> 219.24
B58: Bar 5 | C58: 1 | D58: 18 | E58: -0.00084 | F58: -24.36 | G58: -24.36 | H58: 0 | I58: =+G58*H58 -> 0 | K58: 0 | L58: =+G58*K58 -> 0
B59: Bar 6 | C59: 1 | D59: 18 | E59: -0.00084 | F59: -24.36 | G59: -24.36 | H59: 0 | I59: 0 | K59: 9 | L59: -219.24
B60: Bar 7 | C60: 1 | D60: 33 | E60: 0.00096 | F60: 27.84 | G60: 27.84 | H60: 15 | I60: 417.6 | K60: -9 | L60: -250.56
B61: Bar 8 | C61: 1 | D61: 33 | E61: 0.00096 | F61: 27.84 | G61: 27.84 | H61: 15 | I61: 417.6 | K61: 9 | L61: 250.56
F62: Pn = | G62: =SUM(G53:G61) -> -1599.9 | H62: k | I62: =SUM(I53:I61) -> 12319.95 | J62: in-k | L62: =SUM(L53:L61) -> 0 | M62: in-k
H63: Mnx = | I63: =+I62/12 -> 1026.6625 | J63: ft-k | K63: Mny = | L63: =+L62/12 -> 0 | M63: ft-k

Sheet Example 3.2
A1: A Beginner's Guide to ACI318-14 | G1: Last modified: | H1: 2017-12-04
A2: Example Problem 3.2 | G2: by: | H2: TBQ
B7: fy | C7: 60 | D7: ksi | E7: bar | F7: Area | G7: x | H7: y
B8: f'c | C8: 6 | D8: ksi | F8: (in^2) | H8: (in)
B9: b | C9: 36 | D9: in | E9: 1 | F9: 1.127 | G9: =-36+6+13.2 -> -16.8 | H9: =13.2-6 -> 7.2
B10: h | C10: 36 | D10: in | E10: 2 | F10: 1.127 | G10: =13.2-6 -> 7.2 | H10: =+H9 -> 7.2
E11: 3 | F11: 1.127 | G11: =+G10 -> 7.2 | H11: =13.2-36+6 -> -16.8
E12: coordinate measured from center of area
A23: Solution:
B25: b1 | C25: =MAX(MIN(0.85-(C8-4)*0.05,0.85),0.65) -> 0.75
B27: c | C27: 100 | D27: in <-- Note that you cannot enter "0", so put in a small number (i.e. 0.0001) for zero
B28: a | C28: =+C27*C25 -> 75 | D28: in
B30: Concrete Area and Centroid Computations
C31: Width | D31: Height | E31: Area | F31: Ycf | G31: Ycf*A | H31: XCA | I31: X*A
C32: (in) | D32: (in) | E32: (in2) | F32: (in) | G32: (in3) | H32: (in) | I32: (in3)
B33: A1 | C33: 36 | D33: =MIN(12,C28) -> 12 | E33: =+C33*D33 -> 432 | F33: =+D33/2 -> 6 | G33: =+F33*E33 -> 2592 | H33: =13.2-36/2 -> -4.8 | I33: =+E33*H33 -> -2073.6
B34: A2 | C34: 12 | D34: =MAX(0,MIN(24,C28-12)) -> 24 | E34: =+C34*D34 -> 288 | F34: =+D34/2+12 -> 24 | G34: 6912 | H34: =13.2-6 -> 7.2 | I34: =+E34*H34 -> 2073.6
B35: AS1 | E35: =IF(13.2-H9<=C28,-F9,0) -> -1.127 | F35: =13.2-H9 -> 6 | G35: -6.762 | H35: =+G9 -> -16.8 | I35: =+E35*H35 -> 18.9336
B36: AS2 | E36: =IF(13.2-H10<=C28,-F10,0) -> -1.127 | F36: =13.2-H10 -> 6 | G36: -6.762 | H36: =+G10 -> 7.2 | I36: =+E36*H36 -> -8.1144
B37: AS3 | E37: =IF(13.2-H11<=C28,-F11,0) -> -1.127 | F37: 30 | G37: -33.81 | H37: =+G11 -> 7.2 | I37: =+E37*H37 -> -8.1144
E38: =SUM(E33:E37) -> 716.619 | G38: =SUM(G33:G37) -> 9456.666 | I38: =SUM(I33:I37) -> 2.7048
N39: =2*G48 -> -135.24
B40: Ac = | C40: =+E38 -> 716.619 | D40: in^2
B41: Ycf = | C41: =+G38/C40 -> 13.19622561 | D41: in (center of area measured from the compression face)
B42: Y = | C42: =13.2-C41 -> 0.003774390576 | D42: in (Y location of center of area measured from centroidal X axis)
B43: X = | C43: =+I38/C40 -> 0.003774390576 | D43: in (X location of center of area measured from centroidal Y axis)
N44: =2*I48 -> 973.728
C45: Area | D45: Ycf | E45: strain | F45: stress | G45: Force | H45: y arm | I45: Mnx | K45: x arm | L45: Mny
C46: (in^2) | D46: (in) | F46: (ksi) | G46: (k) | H46: (in) | I46: (in-k) | K46: (in) | L46: (in-k)
B47: Conc | C47: =+C40 -> 716.619 | D47: =+C41 -> 13.19622561 | E47: ---- | F47: =-0.85*C8 -> -5.1 | G47: =+C47*F47 -> -3654.7569 | H47: =+D47-13.2 -> -0.003774390576 | I47: =+G47*H47 -> 13.79448 | K47: =+C43 -> 0.003774390576 | L47: =+G47*K47 -> -13.79448
B48: Bar 1 | C48: =+F9 -> 1.127 | D48: =+F35 -> 6 | E48: =0.003*(D48-C$27)/C$27 -> -0.00282 | F48: =MIN(MAX(E48*29000,-C$7),C$7) -> -60 | G48: -67.62 | H48: =-H9 -> -7.2 | I48: =+G48*H48 -> 486.864 | K48: =+H35 -> -16.8 | L48: =-G48*K48 -> -1136.016
B49: Bar 2 | C49: =+F10 -> 1.127 | D49: =+F36 -> 6 | E49: =0.003*(D49-C$27)/C$27 -> -0.00282 | F49: =MIN(MAX(E49*29000,-C$7),C$7) -> -60 | G49: =+C49*F49 -> -67.62 | H49: =-H10 -> -7.2 | I49: =+G49*H49 -> 486.864 | K49: =+H36 -> 7.2 | L49: =-G49*K49 -> 486.864
B50: Bar 3 | C50: 1.127 | D50: 30 | E50: -0.0021 | F50: =MIN(MAX(E50*29000,-C$7),C$7) -> -60 | G50: -67.62 | H50: 16.8 | I50: =+G50*H50 -> -1136.016 | K50: =+H37 -> 7.2 | L50: =-G50*K50 -> 486.864
F51: Pn = | G51: =SUM(G47:G50) -> -3857.6169 | H51: k | I51: =SUM(I47:I50) -> -148.49352 | J51: in-k | L51: =SUM(L47:L50) -> -176.08248 | M51: in-k
H52: Mnx = | I52: =+I51/12 -> -12.37446 | J52: ft-k | K52: Mny = | L52: =+L51/12 -> -14.67354 | M52: ft-k

Sheet Example 3.3
A1: A Beginner's Guide to ACI318-14 | G1: Last modified: | H1: 2017-12-05
A2: Example Problem 3.3 | G2: by: | H2: TBQ
B8: fy | C8: 60 | D8: ksi | E8: b | F8: 12 | G8: in
B9: f'c | C9: 3 | D9: ksi | E9: d | F9: 21 | G9: in
B10: Beta 1 | C10: =MAX(MIN(0.85-(C9-4)*0.05,0.85),0.65) -> 0.85 | E10: # bars | F10: 5
B19: cb = | C19: =0.003*F9/(0.003+C8/29000) -> 12.42857143 | D19: in
B21: Case 1 | C21: Case 2 | D21: Case 3
A22: Ab | B22: 0.31 | C22: 0.79 | D22: 1.27 | E22: in2
A23: As | B23: =+B22*$F10 -> 1.55 | C23: =+C22*$F10 -> 3.95 | D23: =+D22*$F10 -> 6.35 | E23: in2
A24: a | B24: =+B23*$C8/(0.85*$C9*$F8) -> 3.039215686 | C24: =+C23*$C8/(0.85*$C9*$F8) -> 7.745098039 | D24: =+D23*$C8/(0.85*$C9*$F8) -> 12.45098039 | E24: in
A25: c | B25: =+B24/$C10 -> 3.575547866 | C25: =+C24/$C10 -> 9.111880046 | D25: =+D24/$C10 -> 14.64821223 | E25: in
B26: =IF(B25<=$C19,"Stl Yields","No yielding") -> Stl Yields | C26: =IF(C25<=$C19,"Stl Yields","No yielding") -> Stl Yields | D26: No yielding
A27: T = C = | B27: =+B23*$C8 -> 93 | C27: =+C23*$C8 -> 237
A28: d - a/2 | B28: =+$F9-B24/2 -> 19.48039216 | C28: =+$F9-C24/2 -> 17.12745098
A29: Mnx | B29: =IF(B25<=C19,B27*B28,"---") -> 1811.676471 | C29: =IF(C25<=D19,C27*C28,"---") -> 4059.205882 | E29: in-k
A30: Mnx | B30: =+B29/12 -> 150.9730392 | C30: =+C29/12 -> 338.2671569 | E30: ft-k <--- answers
A32: quadratic a | D32: =0.85*C9*F8*C10 -> 26.01
A33: quadratic b | D33: =0.003*29000*D23 -> 552.45
A34: quadratic c | D34: =-0.003*29000*D23*F9 -> -11601.45
A35: sqrt(b2 - 4ac) | D35: =SQRT(D33^2-4*D32*D34) -> 1229.721863
A36: c = quad. X = | D36: =(-D33+D35)/2/D32 -> 13.01945142 | E36: in
A37: Stl Strain | D37: =0.003*F9/D36-0.003 -> 0.001838913557
A38: Stl stress | D38: =29000*D37 -> 53.32849315 | E38: ksi
A39: T = C = | D39: =+D38*D23 -> 338.6359315 | E39: k
A40: d - a/2 | D40: =+F9-C10*D36/2 -> 15.46673314 | E40: in
A41: Mnx | D41: =+D39*D40 -> 5237.591586 | E41: in-k
A42: Mnx | D42: =+D41/12 -> 436.4659655 | E42: ft-k <--- answer

Sheet Example 3.4
A1: A Beginner's Guide to ACI318-14 | G1: Last modified: | H1: 2017-12-04
A2: Example Problem 3.4 | G2: by: | H2: TBQ
B7: fy | C7: 60 | D7: ksi | E7: bar set | F7: Ab | G7: Number | H7: Area | I7: d
B8: f'c | C8: 3 | D8: ksi | F8: (in2) | H8: (in2) | I8: (in)
B9: b | C9: 12 | D9: in | E9: 1 | F9: 0.31 | G9: 5 | H9: =+F9*G9 -> 1.55 | I9: 3
B10: h | C10: 24 | D10: in | E10: 2 | F10: =+F9 -> 0.31 | G10: 5 | H10: =+G10*F10 -> 1.55 | I10: 21
B11: beta1 | C11: =MAX(MIN(0.85-(C8-4)*0.05,0.85),0.65) -> 0.85
A21: Solution:
B25: Strong Axis Bending
B26: c = | C26: 3.220535909 | D26: in | E26: a = | F26: =+C11*C26 -> 2.737455523 | G26: in., measured from compression face
B28: Concrete Area and Centroid Computations
C29: Width | D29: Height | E29: Area | F29: Ycf | G29: Ycf*A | H29: XCA | I29: X*A
C30: (in) | D30: (in) | E30: (in2) | F30: (in) | G30: (in3) | H30: (in) | I30: (in3)
B31: Acg | C31: 12 | D31: =MIN(F26,C10) -> 2.737455523 | E31: =+C31*D31 -> 32.84946627 | F31: =F26/2 -> 1.368727761 | G31: =+F31*E31 -> 44.96197643 | H31: 0 | I31: =+E31*H31 -> 0
B32: As1 | E32: =IF(F32<F$26,-H9,0) -> 0 | F32: =+I9 -> 3 | G32: 0 | H32: =+H14 -> 0 | I32: =+E32*H32 -> 0
B33: As2 | E33: =IF(F33<F$26,-H10,0) -> 0 | F33: =+I10 -> 21 | G33: 0 | H33: =+H15 -> 0 | I33: =+E33*H33 -> 0
B34: Total | E34: =SUM(E31:E33) -> 32.84946627 | G34: =SUM(G31:G33) -> 44.96197643 | I34: =SUM(I31:I33) -> 0
B35: Ac = | C35: =+E34 -> 32.84946627 | D35: in^2
B36: Ycf = | C36: =+G34/C35 -> 1.368727761 | D36: in (center of area measured from the compression face)
B37: Y = | C37: =18-C36 -> 16.63127224 | D37: in (Y location of center of area measured from centroidal X axis)
B38: X = | C38: =+I34/E34 -> 0 | D38: in (X location of center of area measured from centroidal Y axis)
C40: Area | D40: Ycf | E40: strain | F40: stress | G40: Force | H40: y arm | I40: Mnx | K40: x arm | L40: Mny
C41: (in^2) | D41: (in) | F41: (ksi) | G41: (k) | H41: (in) | I41: (in-k) | K41: (in) | L41: (in-k)
B42: Conc | C42: =+C35 -> 32.84946627 | D42: =+C36 -> 1.368727761 | E42: ---- | F42: =-0.85*C8 -> -2.55 | G42: =+C42*F42 -> -83.76613899 | H42: =C36-C10/2 -> -10.63127224 | I42: =+G42*H42 -> 890.540628 | K42: =+C38 -> 0 | L42: =+G42*K42 -> 0
B43: Bar 1 | C43: =H9 -> 1.55 | D43: =+F32 -> 3 | E43: =0.003*(D43-C$26)/C$26 -> -0.0002054340476 | F43: =MIN(MAX(E43*29000,-C$7),C$7) -> -5.957587379 | G43: -9.234260438 | H43: =D43-C10/2 -> -9 | I43: =+G43*H43 -> 83.10834394 | K43: =+H14 -> 0 | L43: =+G43*K43 -> 0
B44: Bar 2 | C44: =H10 -> 1.55 | D44: =+F33 -> 21 | E44: =0.003*(D44-C$26)/C$26 -> 0.01656196167 | F44: =MIN(MAX(E44*29000,-C$7),C$7) -> 60 | G44: 93 | H44: =+D44-C10/2 -> 9 | I44: =+G44*H44 -> 837 | K44: =+H15 -> 0 | L44: =+G44*K44 -> 0
F45: Pn = | G45: =SUM(G42:G44) -> -0.0003994322772 | H45: k | I45: =SUM(I42:I44) -> 1810.648972 | J45: in-k | L45: =SUM(L42:L44) -> 0 | M45: in-k
H46: Mnx = | I46: =+I45/12 -> 150.8874143 | J46: ft-k | K46: Mny = | L46: =+L45/12 -> 0 | M46: ft-k
C48: Table 3.6.4.1
C49: Case | D49: Rebar Size | E49: Singly Reinforced | G49: Doubly Reinforced | I49: Strength Increase
E50: Mnx (ft-k) | F50: c (in) | G50: Mnx (ft-k) | H50: c (in)
C51: a | D51: #5 | E51: 151 | F51: 3.58 | G51: 151 | H51: 3.22 | I51: =+G51/E51-1 -> 0
C52: b | D52: #8 | E52: 338 | F52: 9.11 | G52: 336 | H52: 4.71 | I52: =+G52/E52-1 -> -0.005917159763
C53: c | D53: #10 | E53: 436 | F53: 13.02 | G53: 579 | H53: 5.53 | I53: 0.3279816514

Sheet Example 3.5
A1: A Beginner's Guide to ACI318-14 | G1: Last modified: | H1: 2017-12-04
A2: Example Problem 3.5 | G2: by: | H2: TBQ
B7: fy | C7: 60 | D7: ksi | E7: bar | F7: Ab | G7: X | H7: Y
B8: f'c | C8: 8 | D8: ksi | F8: (in2) | G8: (in) | H8: (in)
B9: b | C9: 12 | D9: in | E9: 1 | F9: 0.31 | G9: -4 | H9: 4
B10: h | C10: 12 | D10: in | E10: 2 | F10: =+F9 -> 0.31 | G10: 4 | H10: 4
B11: beta1 | C11: =MAX(MIN(0.85-(C8-4)*0.05,0.85),0.65) -> 0.65 | E11: 3 | F11: =+F10 -> 0.31 | G11: -4 | H11: -4
B12: 0.85*f'c | D12: ksi | E12: 4 | F12: =+F11 -> 0.31 | G12: 4 | H12: -4
B14: Axis rotation angle: | D14: 30 | E14: degrees
B23: Solution Summary
B24: Case | C24: Pn | D24: Mnx | E24: Mny
C25: (k) | D25: (ft-k) | E25: (ft-k)
B26: a | C26: =+G54 -> -6.6370625 | D26: =+I55 -> 31.714625 | E26: =+L55 -> -27.51814583
B27: b | C27: =+G67 -> -349.96107 | D27: =+I68 -> 108.3376433 | E27: =+L68 -> -53.63864333
B28: c | C28: =+G82 -> -943.325535 | D28: =+I83 -> 3.447613333 | E28: =+L83 -> -1.874363333
B29: d | C29: =+G98 -> 896.368 | D29: =+I99 -> 0 | E29: =+L99 -> 0
A31: Solution:
B32: Depths to rebar from compression face
B33: Bar 1 | C33: 2.75 | D33: in
B34: Bar 2 | C34: 6.625 | D34: in
B35: Bar 3 | C35: 8.375 | D35: in
B36: Bar 4 | C36: 13.69 | D36: in
B38: Case dependent values
B39: Case | C39: a | D39: b | E39: c | F39: d
B40: c | C40: 4 | D40: 10 | E40: 20 | F40: 100 | G40: in
B41: a | C41: =+C40*$C11 -> 2.6 | D41: =+D40*$C11 -> 6.5 | E41: =+E40*$C11 -> 13 | F41: =+F40*$C11 -> 65 | G41: in
B42: Ac | C42: 7.81 | D42: 48.52 | E42: 130.71 | F42: 144 | G42: in2
B43: X | C43: -4.25 | D43: =-1-11/16 -> -1.6875 | E43: =-3/8 -> -0.375 | F43: 0 | G43: in
B44: Y | C44: =5+1/16 -> 5.0625 | D44: =3+9/16 -> 3.5625 | E44: =9/16 -> 0.5625 | F44: 0 | G44: in
B46: Case (a) | C46: No steel located in the compression area
C47: Area | D47: dcf | E47: strain | F47: stress | G47: Force | H47: y arm | I47: Mnx | K47: x arm | L47: Mny
C48: (in2) | D48: (in) | F48: (ksi) | G48: (k) | H48: (in) | I48: (in-k) | K48: (in) | L48: (in-k)
B49: Concrete | C49: 7.81 | F49: =-0.85*C8 -> -6.8 | G49: =C49*$F49 -> -53.108 | H49: =+C44 -> 5.0625 | I49: =-G49*H49 -> 268.85925 | K49: =+C43 -> -4.25 | L49: =-G49*K49 -> -225.709
B50: Bar 1 | C50: =+F9 -> 0.31 | D50: =+C33 -> 2.75 | E50: =0.003*(D50-C$40)/C$40 -> -0.0009375 | F50: =MIN(MAX(E50*29000,-C$7), C$7) -> -27.1875 | G50: =+F50*C50 -> -8.428125 | H50: =+H9 -> 4 | I50: =-G50*H50 -> 33.7125 | K50: =+G9 -> -4 | L50: =-G50*K50 -> -33.7125
B51: Bar 2 | C51: =+F10 -> 0.31 | D51: =+C34 -> 6.625 | E51: =0.003*(D51-C$40)/C$40 -> 0.00196875 | F51: =MIN(MAX(E51*29000,-C$7), C$7) -> 57.09375 | G51: =+F51*C51 -> 17.6990625 | H51: =+H10 -> 4 | I51: =-G51*H51 -> -70.79625 | K51: =+G10 -> 4 | L51: -70.79625
B52: Bar 3 | C52: 0.31 | D52: 8.375 | E52: 0.00328125 | F52: =MIN(MAX(E52*29000,-C$7), C$7) -> 60 | G52: 18.6 | H52: -4 | I52: 74.4 | K52: -4 | L52: 74.4
B53: Bar 4 | C53: 0.31 | D53: 13.69 | E53: 0.0072675 | F53: =MIN(MAX(E53*29000,-C$7), C$7) -> 60 | G53: 18.6 | H53: -4 | I53: 74.4 | K53: 4 | L53: -74.4
F54: Pn = | G54: =SUM(G49:G53) -> -6.6370625 | H54: kips | I54: =SUM(I49:I53) -> 380.5755 | L54: =SUM(L49:L53) -> -330.21775
H55: Mnx = | I55: =+I54/12 -> 31.714625 | J55: ft-k | K55: Mny = | L55: =+L54/12 -> -27.51814583 | M55: ft-k
B58: Case (b) | C58: One bar in compression area
C59: Area | D59: dcf | E59: strain | F59: stress | G59: Force | H59: y arm | I59: Mnx | K59: x arm | L59: Mny
C60: (in2) | D60: (in) | F60: (ksi) | G60: (k) | H60: (in) | I60: (in-k) | K60: (in) | L60: (in-k)
B61: Concrete | C61: =+D42 -> 48.52 | F61: =+F49 -> -6.8 | G61: =C61*$F61 -> -329.936 | H61: =+D44 -> 3.5625 | I61: =-G61*H61 -> 1175.397 | K61: =+D43 -> -1.6875 | L61: =-G61*K61 -> -556.767
B62: Hole-Bar1 | C62: =F9 -> 0.31 | D62: =+D63 -> 2.75 | F62: =-F61 -> 6.8 | G62: =+C62*F62 -> 2.108 | H62: =+H63 -> 4 | I62: =-G62*H62 -> -8.432 | K62: =+K63 -> -4 | L62: =-G62*K62 -> 8.432
B63: Bar 1 | C63: =+F9 -> 0.31 | D63: =+D50 -> 2.75 | E63: =0.003*(D63-D$40)/D$40 -> -0.002175 | F63: =MIN(MAX(E63*29000,-C$7), C$7) -> -60 | G63: =+F63*C63 -> -18.6 | H63: =+H50 -> 4 | I63: =-G63*H63 -> 74.4 | K63: =+K50 -> -4 | L63: -74.4
B64: Bar 2 | C64: =+F10 -> 0.31 | D64: =+D51 -> 6.625 | E64: =0.003*(D64-D$40)/D$40 -> -0.0010125 | F64: =MIN(MAX(E64*29000,-C$7), C$7) -> -29.3625 | G64: =+F64*C64 -> -9.102375 | H64: =+H51 -> 4 | I64: =-G64*H64 -> 36.4095 | K64: =+K51 -> 4 | L64: 36.4095
B65: Bar 3 | C65: 0.31 | D65: 8.375 | E65: -0.0004875 | F65: =MIN(MAX(E65*29000,-C$7), C$7) -> -14.1375 | G65: -4.382625 | H65: -4 | I65: -17.5305 | K65: -4 | L65: -17.5305
B66: Bar 4 | C66: 0.31 | D66: 13.69 | E66: 0.001107 | F66: =MIN(MAX(E66*29000,-C$7), C$7) -> 32.103 | G66: 9.95193 | H66: -4 | I66: 39.80772 | K66: 4 | L66: =-G66*K66 -> -39.80772
F67: Pn = | G67: =SUM(G61:G66) -> -349.96107 | H67: kips | I67: =SUM(I61:I66) -> 1300.05172 | L67: =SUM(L61:L66) -> -643.66372
H68: Mnx = | I68: =+I67/12 -> 108.3376433 | J68: ft-k | K68: Mny = | L68: =+L67/12 -> -53.63864333 | M68: ft-k
B71: Case (c) | C71: Three bars in compression area
C72: Area | D72: dcf | E72: strain | F72: stress | G72: Force | H72: y arm | I72: Mnx | K72: x arm | L72: Mny
C73: (in2) | D73: (in) | F73: (ksi) | G73: (k) | H73: (in) | I73: (in-k) | K73: (in) | L73: (in-k)
B74: Concrete | C74: =+E42 -> 130.71 | F74: =+F61 -> -6.8 | G74: =C74*$F74 -> -888.828 | H74: =+D56 -> 0 | I74: =-G74*H74 -> 0 | K74: =+D55 -> 0 | L74: =-G74*K74 -> 0
B75: Hole-Bar1 | C75: =+F9 -> 0.31 | D75: =+D78 -> 2.75 | F75: =-F74 -> 6.8 | G75: =+C75*F75 -> 2.108 | H75: =+H78 -> 4 | I75: =-G75*H75 -> -8.432 | K75: =+K78 -> -4 | L75: =-G75*K75 -> 8.432
B76: Hole-Bar2 | C76: =+F10 -> 0.31 | D76: =+D79 -> 6.625 | F76: =-F74 -> 6.8 | G76: =+C76*F76 -> 2.108 | H76: =+H79 -> 4 | I76: =-G76*H76 -> -8.432 | K76: =+K79 -> 4 | L76: =-G76*K76 -> -8.432
B77: Hole-Bar3 | C77: 0.31 | D77: 8.375 | F77: =-F74 -> 6.8 | G77: 2.108 | H77: -4 | I77: 8.432 | K77: -4 | L77: 8.432
B78: Bar 1 | C78: =+F9 -> 0.31 | D78: =+D63 -> 2.75 | E78: =0.003*(D78-E$40)/E$40 -> -0.0025875 | F78: =MIN(MAX(E78*29000,-C$7), C$7) -> -60 | G78: =+F78*C78 -> -18.6 | H78: =+H63 -> 4 | I78: =-G78*H78 -> 74.4 | K78: =+K63 -> -4 | L78: =-G78*K78 -> -74.4
B79: Bar 2 | C79: =+F10 -> 0.31 | D79: =+D64 -> 6.625 | E79: =0.003*(D79-E$40)/E$40 -> -0.00200625 | F79: =MIN(MAX(E79*29000,-C$7), C$7) -> -58.18125 | G79: =+F79*C79 -> -18.0361875 | H79: =+H64 -> 4 | I79: =-G79*H79 -> 72.14475 | K79: =+K64 -> 4 | L79: =-G79*K79 -> 72.14475
B80: Bar 3 | C80: 0.31 | D80: =+D65 -> 8.375 | E80: -0.00174375 | F80: =MIN(MAX(E80*29000,-C$7), C$7) -> -50.56875 | G80: -15.6763125 | H80: =+H65 -> -4 | I80: -62.70525 | K80: =+K65 -> -4 | L80: =-G80*K80 -> -62.70525
B81: Bar 4 | C81: 0.31 | D81: =+D66 -> 13.69 | E81: -0.0009465 | F81: =MIN(MAX(E81*29000,-C$7), C$7) -> -27.4485 | G81: -8.509035 | H81: =+H66 -> -4 | I81: -34.03614 | K81: =+K66 -> 4 | L81: =-G81*K81 -> 34.03614
F82: Pn = | G82: =SUM(G74:G81) -> -943.325535 | H82: kips | I82: =SUM(I74:I81) -> 41.37136 | L82: =SUM(L74:L81) -> -22.49236
H83: Mnx = | I83: =+I82/12 -> 3.447613333 | J83: ft-k | K83: Mny = | L83: =+L82/12 -> -1.874363333 | M83: ft-k
B86: Case (d) | C86: four bars in compression area
C87: Area | D87: dcf | E87: strain | F87: stress | G87: Force | H87: y arm | I87: Mnx | K87: x arm | L87: Mny
C88: (in2) | D88: (in) | F88: (ksi) | G88: (k) | H88: (in) | I88: (in-k) | K88: (in) | L88: (in-k)
B89: Concrete | C89: =+F42 -> 144 | F89: =+F77 -> 6.8 | G89: =C89*$F89 -> 979.2 | H89: =+D71 -> 0 | I89: =-G89*H89 -> 0 | K89: =+D70 -> 0 | L89: =-G89*K89 -> 0
B90: Hole-Bar1 | C90: =+F9 -> 0.31 | D90: =+D94 -> 2.75 | F90: =-F89 -> -6.8 | G90: =+C90*F90 -> -2.108 | H90: =+H94 -> 4 | I90: =-G90*H90 -> 8.432 | K90: =+K94 -> -4 | L90: =-G90*K90 -> -8.432
B91: Hole-Bar2 | C91: =+F10 -> 0.31 | D91: =+D95 -> 6.625 | F91: =-F89 -> -6.8 | G91: =+C91*F91 -> -2.108 | H91: =+H95 -> 4 | I91: =-G91*H91 -> 8.432 | K91: =+K95 -> 4 | L91: 8.432
B92: Hole-Bar3 | C92: 0.31 | D92: 8.375 | F92: =-F89 -> -6.8 | G92: -2.108 | H92: -4 | I92: -8.432 | K92: -4 | L92: -8.432
B93: Hole-Bar4 | C93: 0.31 | D93: 13.69 | F93: =-F89 -> -6.8 | G93: =+C93*F93 -> -2.108 | H93: -4 | I93: =-G93*H93 -> -8.432 | K93: 4 | L93: =-G93*K93 -> 8.432
B94: Bar 1 | C94: =+F9 -> 0.31 | D94: =+D78 -> 2.75 | E94: =0.003*(D94-F$40)/F$40 -> -0.0029175 | F94: =MIN(MAX(E94*29000,-C$7), C$7) -> -60 | G94: =+F94*C94 -> -18.6 | H94: =+H78 -> 4 | I94: =-G94*H94 -> 74.4 | K94: =+K78 -> -4 | L94: =-G94*K94 -> -74.4
B95: Bar 2 | C95: =+F10 -> 0.31 | D95: =+D79 -> 6.625 | E95: =0.003*(D95-F$40)/F$40 -> -0.00280125 | F95: =MIN(MAX(E95*29000,-C$7), C$7) -> -60 | G95: =+F95*C95 -> -18.6 | H95: =+H79 -> 4 | I95: =-G95*H95 -> 74.4 | K95: =+K79 -> 4 | L95: =-G95*K95 -> 74.4
B96: Bar 3 | C96: 0.31 | D96: =+D80 -> 8.375 | E96: -0.00274875 | F96: =MIN(MAX(E96*29000,-C$7), C$7) -> -60 | G96: -18.6 | H96: =+H80 -> -4 | I96: -74.4 | K96: =+K80 -> -4 | L96: =-G96*K96 -> -74.4
B97: Bar 4 | C97: 0.31 | D97: =+D81 -> 13.69 | E97: -0.0025893 | F97: =MIN(MAX(E97*29000,-C$7), C$7) -> -60 | G97: -18.6 | H97: =+H81 -> -4 | I97: -74.4 | K97: =+K81 -> 4 | L97: =-G97*K97 -> 74.4
F98: Pn = | G98: =SUM(G89:G97) -> 896.368 | H98: kips | I98: =SUM(I89:I97) -> 0 | L98: =SUM(L89:L97) -> 0
H99: Mnx = | I99: =+I98/12 -> 0 | J99: ft-k | K99: Mny = | L99: =+L98/12 -> 0 | M99: ft-k
